bitfinex-derivatives/quotes_BTCF0:USTF0_20240830
["timestamp","ask_amount","ask_price","bid_price","bid_amount"]
[1725036870304,0.2,58460.0,58459.0,0.085534]
[1725036871788,0.202,58460.0,58459.0,0.086534]
[1725036872902,0.202,58460.0,58459.0,0.087534]
[1725036873300,0.202,58460.0,58459.0,0.086534]
[1725036873596,0.202,58460.0,58459.0,0.087534]
[1725036874200,0.23247494,58460.0,58459.0,0.087534]
[1725036875694,0.24115682,58460.0,58459.0,0.087534]
[1725036877197,0.085538,58456.0,58454.0,0.00025675]
[1725036877507,0.2,58455.0,58454.0,0.00025675]
[1725036877707,0.28554,58455.0,58454.0,0.00025675]
[1725036878104,0.2,58455.0,58454.0,0.08579775]
[1725036878305,0.2,58455.0,58454.0,0.08679775]
[1725036879198,0.27,58455.0,58454.0,0.08679775]
[1725036879505,0.2,58455.0,58454.0,0.08679775]
[1725036880201,0.2,58455.0,58454.0,0.08579775]
[1725036880399,0.2,58455.0,58454.0,0.08679775]
[1725036880400,0.213,58455.0,58454.0,0.08679775]
[1725036881700,0.213,58455.0,58454.0,0.00125675]
[1725036881906,0.29854,58455.0,58454.0,0.00125675]
[1725036882416,0.29854,58455.0,58454.0,0.00225675]
[1725036886305,0.38408,58455.0,58454.0,0.00225675]
[1725036886513,0.085543,58453.0,58444.0,0.004]
[1725036886806,0.085543,58453.0,58440.0,0.3608]
[1725036886807,0.2,58446.0,58440.0,0.3608]
[1725036887198,0.2,58446.0,58445.0,0.085554]
[1725036887597,0.25,58446.0,58445.0,0.085554]
[1725036888002,0.28106362,58446.0,58445.0,0.085554]
[1725036890007,0.23106362,58446.0,58445.0,0.085554]
[1725036890311,0.23606362,58446.0,58445.0,0.085554]
[1725036890612,0.23606362,58446.0,58445.0,0.446354]
[1725036890809,0.03606362,58446.0,58445.0,0.446354]
[1725036891000,0.03606362,58446.0,58445.0,0.531908]
[1725036892210,0.005,58446.0,58445.0,1.245188]
[1725036892512,0.005,58446.0,58445.0,1.930742]
[1725036893604,0.005,58446.0,58445.0,4.220742]
[1725036894406,0.005,58446.0,58445.0,3.620742]
[1725036900718,0.005,58446.0,58445.0,4.220742]
[1725036903114,0.00025675,58451.0,58450.0,0.256641]
[1725036903314,0.00025675,58451.0,58450.0,0.817441]
[1725036903818,0.00025675,58451.0,58450.0,2.016228]
[1725036904415,0.00025675,58451.0,58450.0,2.017228]
[1725036904416,0.00425675,58451.0,58450.0,2.017228]
[1725036904608,0.004,58463.0,58462.0,0.171058]
[1725036904811,0.085519,58470.0,58469.0,0.085519]
[1725036905016,0.00867167,58472.0,58469.0,0.085519]
[1725036905017,0.2,58471.0,58470.0,0.085518]
[1725036905211,0.2,58471.0,58469.0,0.3608]
[1725036905212,0.00867167,58472.0,58471.0,0.085516]
[1725036905424,0.085513,58473.0,58472.0,0.085515]
[1725036906318,0.00837459,58473.0,58472.0,0.085515]
[1725036906513,0.23009922,58474.0,58473.0,0.085513]
[1725036908105,0.23009922,58474.0,58473.0,0.086513]
[1725036908812,0.23009922,58474.0,58473.0,0.002]
[1725036909009,1.87496322,58474.0,58473.0,0.002]
[1725036909209,0.085522,58467.0,58466.0,0.00025653]
[1725036909411,0.285522,58467.0,58466.0,0.00025653]
[1725036910523,0.285522,58467.0,58466.0,0.00125653]
[1725036911421,0.5311,58470.0,58466.0,0.00125653]
[1725036911623,0.2,58468.0,58466.0,0.00125653]
[1725036911919,0.2,58468.0,58466.0,0.08677953]
[1725036912117,0.2,58468.0,58466.0,0.08777953]
[1725036912522,0.2,58468.0,58466.0,0.08677953]
[1725036912723,0.2,58468.0,58467.0,0.085522]
[1725036915419,0.6042199,58470.0,58467.0,0.085522]
[1725036915620,0.2,58468.0,58467.0,0.085522]
[1725036915817,0.2,58468.0,58467.0,0.086522]
[1725036916415,0.2,58468.0,58467.0,0.085522]
[1725036916816,0.16573,58468.0,58467.0,0.086522]
[1725036917010,0.5195809,58470.0,58469.0,0.171038]
[1725036917011,0.03120964,58470.0,58469.0,0.171038]
[1725036917216,0.085479,58497.0,58467.0,0.5618]
[1725036917217,0.004,58493.0,58487.0,0.085493]
[1725036917416,0.085432,58529.0,58500.0,0.085474]
[1725036917417,0.1509,58501.0,58500.0,0.085474]
[1725036917619,0.00088,58506.0,58501.0,0.2]
[1725036917924,0.3608,58525.0,58518.0,0.08569]
[1725036918232,0.3608,58525.0,58505.0,0.5608]
[1725036918233,6.1e-07,58529.0,58524.0,0.28569]
[1725036918522,0.0046,58548.0,58524.0,0.28569]
[1725036918523,0.2,58549.0,58528.0,0.3608]
[1725036918719,0.28894598,58557.0,58541.0,0.3608]
[1725036918720,0.16112,58552.0,58541.0,0.3608]
[1725036918923,1.07507,58542.0,58533.0,0.00025631]
[1725036919122,0.2,58537.0,58535.0,0.3608]
[1725036919325,0.3608,58554.0,58535.0,0.3608]
[1725036919626,0.02394,58551.0,58540.0,0.3608]
[1725036919928,0.2,58541.0,58540.0,0.3608]
[1725036920126,0.2,58541.0,58540.0,0.23594921]
[1725036920127,0.64,58541.0,58540.0,0.23594921]
[1725036920439,1.27675,58541.0,58536.0,0.08569]
[1725036920618,0.21572,58537.0,58536.0,0.08569]
[1725036920816,0.12999,58537.0,58536.0,0.08569]
[1725036921017,0.59106,58537.0,58536.0,0.08569]
[1725036921216,1.36252,58537.0,58536.0,0.08569]
[1725036921414,1.24252,58537.0,58536.0,0.08569]
[1725036921617,0.55679,58537.0,58536.0,0.08569]
[1725036921822,0.25,58540.0,58536.0,0.25714]
[1725036922019,0.16104,58547.0,58544.0,0.20573]
[1725036922020,0.19855,58547.0,58544.0,0.20573]
[1725036922230,0.3608,58561.0,58540.0,0.08569]
[1725036922231,0.25,58559.0,58546.0,0.56653]
[1725036922527,0.3608,58547.0,58540.0,0.08569]
[1725036922824,0.3608,58542.0,58533.0,0.19012206]
[1725036923125,0.4608,58547.0,58533.0,0.23639166]
[1725036923126,0.25,58540.0,58533.0,0.23639166]
[1725036923330,0.25,58535.0,58533.0,0.15066166]
[1725036923515,0.236,58535.0,58533.0,0.15066166]
[1725036924115,0.236,58535.0,58533.0,0.16466166]
[1725036924319,0.25,58534.0,58533.0,0.16466166]
[1725036924527,0.25,58538.0,58533.0,0.014]
[1725036924824,0.16125482,58540.0,58533.0,0.014]
[1725036924825,0.25,58534.0,58533.0,0.014]
[1725036925020,0.25,58534.0,58533.0,0.028]
[1725036925220,1.36252,58534.0,58533.0,0.028]
[1725036925820,0.25,58534.0,58533.0,0.028]
[1725036926020,0.25,58538.0,58537.0,0.085419]
[1725036926528,0.001,58535.0,58533.0,0.3748]
[1725036926742,0.28019897,58538.0,58533.0,0.3748]
[1725036926926,0.28019897,58538.0,58537.0,0.3608]
[1725036927231,0.28119897,58538.0,58537.0,0.3608]
[1725036927430,1.39367897,58538.0,58533.0,0.3618]
[1725036927729,0.25,58534.0,58533.0,0.3618]
[1725036927947,0.03219897,58538.0,58533.0,0.3618]
[1725036927948,0.03219897,58538.0,58536.0,0.085421]
[1725036928239,0.002,58538.0,58537.0,0.3618]
[1725036928528,0.002,58538.0,58537.0,0.87428]
[1725036928843,0.002,58538.0,58537.0,0.96001]
[1725036929431,0.001,58538.0,58537.0,0.3618]
[1725036929732,1.37348,58538.0,58537.0,0.3608]
[1725036929924,1.37348,58538.0,58526.0,0.3608]
[1725036930126,0.25,58533.0,58531.0,0.3608]
[1725036930330,0.25,58533.0,58532.0,0.085427]
[1725036930528,0.00025482,58540.0,58531.0,0.44653]
[1725036930729,0.16096,58539.0,58536.0,0.446221]
[1725036930922,0.27096,58539.0,58536.0,0.085421]
[1725036931229,0.27096,58539.0,58537.0,0.3608]
[1725036931429,0.251,58538.0,58537.0,0.3668]
[1725036931637,0.371,58538.0,58537.0,0.3668]
[1725036931928,0.371,58538.0,58537.0,0.45222]
[1725036932131,0.37,58538.0,58537.0,0.44622]
[1725036932626,0.12,58538.0,58537.0,0.3608]
[1725036932834,0.16196,58539.0,58538.0,0.085418]
[1725036932835,0.001,58539.0,58538.0,0.085418]
[1725036933023,0.00025482,58540.0,58539.0,0.085417]
[1725036934228,0.001,58540.0,58539.0,0.099417]
[1725036934629,0.03003691,58544.0,58539.0,0.02]
[1725036934831,0.6108,58554.0,58545.0,0.085408]
[1725036935036,0.6108,58554.0,58543.0,0.3608]
[1725036935037,0.25869944,58559.0,58553.0,0.3608]
[1725036935236,0.04005386,58559.0,58558.0,0.085389]
[1725036935426,0.6284,58577.0,58559.0,0.085387]
[1725036935427,0.25,58571.0,58559.0,0.085387]
[1725036935633,0.25,58567.0,58560.0,0.085386]
[1725036935936,0.25,58563.0,58561.0,0.085384]
[1725036936241,0.25,58563.0,58559.0,0.00025631]
[1725036936534,0.26,58563.0,58559.0,0.00025631]
[1725036936834,0.51228,58562.0,58559.0,0.00725631]
[1725036937140,0.6108,58560.0,58539.0,0.3668]
[1725036937335,0.25,58540.0,58539.0,0.3668]
[1725036937646,0.078397,58553.0,58539.0,0.3748]
[1725036937647,0.25,58541.0,58539.0,0.3748]
[1725036937938,0.001,58544.0,58540.0,0.085415]
[1725036938326,0.16212,58546.0,58541.0,0.085414]
[1725036938524,0.00025631,58548.0,58541.0,0.085414]
[1725036938724,0.16212,58547.0,58544.0,0.3608]
[1725036938923,0.25,58545.0,58544.0,0.3608]
[1725036939131,0.25,58546.0,58544.0,0.3608]
[1725036939526,0.14812,58547.0,58544.0,0.3608]
[1725036939724,0.16212,58546.0,58544.0,0.3608]
[1725036939927,0.25,58547.0,58544.0,0.3608]
[1725036940248,0.03088954,58548.0,58544.0,0.460209]
[1725036940533,0.03088954,58548.0,58533.0,0.3608]
[1725036940534,0.696208,58545.0,58533.0,0.3608]
[1725036940736,0.236,58535.0,58533.0,0.3608]
[1725036940935,0.31434595,58535.0,58533.0,0.3608]
[1725036941132,0.30034595,58535.0,58533.0,0.3608]
[1725036941327,0.25,58534.0,58533.0,0.3608]
[1725036941528,0.37,58534.0,58533.0,0.3608]
[1725036941942,0.37,58534.0,58533.0,0.3748]
[1725036942334,0.365,58534.0,58533.0,0.3748]
[1725036942936,0.366,58534.0,58533.0,0.3798]
[1725036943238,0.52812,58534.0,58533.0,0.3798]
[1725036943437,0.366,58534.0,58533.0,0.3798]
[1725036943642,0.366,58534.0,58528.0,0.08539331]
[1725036943643,1.47852,58534.0,58528.0,0.08539331]
[1725036943935,0.335432,58529.0,58528.0,0.00025631]
[1725036944134,0.25,58529.0,58528.0,0.00025631]
[1725036944734,0.236,58529.0,58528.0,0.00025631]
[1725036945036,0.17613869,58529.0,58528.0,0.21563416]
[1725036945233,0.17613869,58529.0,58528.0,0.08539331]
[1725036945437,0.17713869,58529.0,58528.0,0.14449728]
[1725036946345,0.17813869,58529.0,58528.0,0.30302294]
[1725036947129,0.002,58529.0,58528.0,0.47418594]
[1725036947339,0.002,58529.0,58528.0,1.28041206]
[1725036948229,0.002,58529.0,58528.0,0.76785206]
[1725036949039,0.002,58529.0,58528.0,0.76780058]
[1725036949243,0.002,58529.0,58528.0,0.29230111]
[1725036949435,0.03125073,58534.0,58532.0,0.085427]
[1725036949629,0.03125073,58534.0,58532.0,0.171157]
[1725036950240,0.03125073,58534.0,58532.0,2.491157]
[1725036950462,0.03125073,58534.0,58533.0,0.10687784]
[1725036950740,0.2731,58560.0,58533.0,0.10687784]
[1725036950741,0.08536,58578.0,58569.0,0.3608]
[1725036950948,0.085359,58579.0,58577.0,0.3608]
[1725036951131,0.09374122,58579.0,58577.0,0.3608]
[1725036951331,0.16212,58578.0,58577.0,0.3608]
[1725036951535,1.27424,58578.0,58577.0,0.3608]
[1725036951728,0.67428,58578.0,58577.0,0.3608]
[1725036951933,0.28612,58578.0,58577.0,0.3608]
[1725036952151,1.75908,58578.0,58572.0,0.00025608]
[1725036952334,0.25,58573.0,58572.0,0.00025608]
[1725036952537,1.06388,58573.0,58563.0,0.3608]
[1725036952740,0.33538,58564.0,58563.0,0.35327]
[1725036952940,0.2663,58572.0,58553.0,0.25]
[1725036953143,0.2663,58572.0,58564.0,0.3608]
[1725036953144,0.16212,58571.0,58564.0,0.3608]
[1725036953344,0.25,58570.0,58564.0,0.3608]
[1725036953548,0.25,58565.0,58557.0,0.3528]
[1725036953845,0.935389,58558.0,58557.0,0.3528]
[1725036954045,1.610579,58558.0,58557.0,0.45165109]
[1725036954236,0.4333,58564.0,58557.0,0.45165109]
[1725036954237,0.23617,58564.0,58557.0,0.45165109]
[1725036954439,0.00025608,58567.0,58563.0,0.3608]
[1725036954633,0.03131587,58567.0,58566.0,0.05095507]
[1725036954830,0.385354,58582.0,58566.0,0.32048749]
[1725036954831,0.29233382,58582.0,58566.0,0.32048749]
[1725036955036,0.35520382,58582.0,58571.0,0.3608]
[1725036955230,0.31535033,58582.0,58578.0,0.7216]
[1725036955547,0.03142971,58582.0,58579.0,0.10682153]
[1725036955732,0.00025553,58586.0,58580.0,0.10682153]
[1725036955936,0.00025553,58586.0,58578.0,0.80733]
[1725036955937,0.00025553,58586.0,58585.0,0.3608]
[1725036956145,0.00025553,58586.0,58585.0,0.46762153]
[1725036956453,1.11233553,58586.0,58585.0,0.3608]
[1725036956745,1.18233553,58586.0,58585.0,0.3608]
[1725036956935,1.18233553,58586.0,58578.0,0.36326382]
[1725036956936,0.71025553,58586.0,58578.0,0.36326382]
[1725036957138,0.3,58579.0,58578.0,0.36326382]
[1725036957434,0.41860142,58579.0,58578.0,0.47007656]
[1725036957640,1.69280142,58579.0,58578.0,0.46007656]
[1725036957962,0.16333553,58586.0,58578.0,0.83487656]
[1725036958248,0.16333553,58586.0,58557.0,0.32200554]
[1725036958249,0.6608,58579.0,58573.0,0.3608]
[1725036958543,0.286,58574.0,58573.0,0.3608]
[1725036958740,0.396,58574.0,58573.0,0.46762567]
[1725036959044,0.90816,58574.0,58573.0,0.46762567]
[1725036959240,0.90816,58574.0,58573.0,0.3608]
[1725036959544,1.08424,58574.0,58573.0,0.3748]
[1725036959744,1.68424,58574.0,58573.0,0.3748]
[1725036960044,1.68424,58574.0,58573.0,0.3888]
[1725036960545,1.08424,58574.0,58573.0,0.3888]
[1725036960748,1.68424,58574.0,58573.0,0.3888]
[1725036961039,1.68524,58574.0,58573.0,0.3888]
[1725036961245,0.60436198,58574.0,58573.0,0.3888]
[1725036961435,0.00025553,58586.0,58573.0,0.90096]
[1725036961637,0.01,58586.0,58585.0,0.7216]
[1725036961848,0.3,58595.0,58585.0,0.7216]
[1725036962049,0.3,58595.0,58590.0,0.3608]
[1725036962050,0.42,58595.0,58590.0,0.3608]
[1725036962231,0.12849209,58595.0,58590.0,0.3608]
[1725036962436,0.12849209,58595.0,58590.0,0.446142]
[1725036962647,0.12849209,58595.0,58590.0,0.98171249]
[1725036962840,0.12849209,58595.0,58594.0,0.446137]
[1725036963036,0.5272,58610.0,58594.0,0.446137]
[1725036963037,0.3608,58638.0,58610.0,0.085313]
[1725036963241,0.3608,58638.0,58612.0,0.3608]
[1725036963242,0.3,58615.0,58612.0,0.3608]
[1725036963440,0.30836992,58615.0,58612.0,0.3608]
[1725036963845,0.16896,58614.0,58612.0,0.3608]
[1725036964345,0.16896,58614.0,58613.0,0.13006327]
[1725036964346,0.11772037,58614.0,58613.0,0.13006327]
[1725036964547,0.18772037,58614.0,58613.0,0.13006327]
[1725036964738,0.69956037,58614.0,58613.0,0.2144383]
[1725036964941,0.69956037,58614.0,58607.0,0.00025608]
[1725036964942,0.69956037,58614.0,58608.0,0.08437242]
[1725036965136,0.18772037,58614.0,58608.0,0.08437242]
[1725036965341,0.07,58614.0,58607.0,0.36105608]
[1725036965546,0.00836992,58615.0,58613.0,0.3608]
[1725036965749,0.45785857,58625.0,58614.0,0.13005774]
[1725036966050,0.10868736,58625.0,58621.0,0.3608]
[1725036966356,0.07834879,58625.0,58623.0,0.0673674]
[1725036966646,0.00834879,58625.0,58621.0,1.34225641]
[1725036966855,0.3608,58653.0,58623.0,0.08430416]
[1725036967147,0.11,58646.0,58640.0,0.06735592]
[1725036967343,0.3608,58654.0,58643.0,0.3608]
[1725036967539,0.02025312,58654.0,58651.0,0.0504309]
[1725036967936,0.385252,58652.0,58651.0,0.0504309]
[1725036968147,0.41,58652.0,58645.0,0.05043105]
[1725036968351,0.4,58652.0,58643.0,0.0506869]
[1725036968543,0.3,58646.0,58643.0,0.00025585]
[1725036968743,0.11,58646.0,58643.0,0.00025585]
[1725036968944,0.109,58646.0,58643.0,0.00025585]
[1725036969148,0.109,58646.0,58643.0,0.62091226]
[1725036969358,0.3608,58654.0,58644.0,0.05043105]
[1725036969654,0.7708,58654.0,58651.0,0.001]
[1725036970042,0.51115674,58654.0,58645.0,0.05043105]
[1725036970241,0.3,58646.0,58643.0,0.00125585]
[1725036970544,0.7608,58646.0,58643.0,0.00225585]
[1725036970738,0.084272,58639.0,58637.0,0.05026048]
[1725036970950,0.084272,58639.0,58631.0,0.04275862]
[1725036970951,0.085281,58633.0,58631.0,0.04275862]
[1725036971251,0.11,58639.0,58630.0,0.3608]
[1725036971252,0.339173,58638.0,58630.0,0.3608]
[1725036971448,0.17196,58632.0,58630.0,0.3608]
[1725036971642,0.03017537,58641.0,58630.0,0.98145641]
[1725036971845,0.17292,58641.0,58640.0,0.3608]
[1725036972047,0.25317512,58641.0,58640.0,0.3608]
[1725036972252,0.24317512,58641.0,58640.0,0.3608]
[1725036972457,0.17217512,58641.0,58640.0,0.3608]
[1725036972649,0.17317512,58641.0,58640.0,0.3608]
[1725036973149,0.22317512,58641.0,58640.0,0.001]
[1725036973350,0.24317512,58641.0,58640.0,0.001]
[1725036973654,0.00025512,58641.0,58640.0,0.001]
[1725036973846,0.17317512,58641.0,58640.0,0.001]
[1725036974055,0.25317512,58641.0,58640.0,0.001]
[1725036974252,0.85004312,58641.0,58640.0,0.001]
[1725036974556,0.85004312,58641.0,58640.0,0.002]
[1725036974954,0.85004312,58641.0,58630.0,0.00025585]
[1725036974955,0.085278,58635.0,58630.0,0.00025585]
[1725036975152,0.085283,58631.0,58630.0,0.00025585]
[1725036975359,0.195283,58631.0,58630.0,0.00025585]
[1725036975652,0.3608,58637.0,58630.0,0.00025585]
[1725036975956,0.3608,58637.0,58630.0,0.62091226]
[1725036975957,0.17292,58636.0,58630.0,0.62091226]
[1725036976253,0.17292,58635.0,58630.0,0.62191226]
[1725036976550,0.28292,58635.0,58630.0,0.00125585]
[1725036976751,0.28292,58635.0,58630.0,0.00025585]
[1725036976752,0.085279,58634.0,58630.0,0.00025585]
[1725036976965,0.195279,58634.0,58630.0,0.01525585]
[1725036977147,0.11,58634.0,58630.0,0.01525585]
[1725036977341,0.17292,58633.0,58630.0,0.62191226]
[1725036977555,0.17292,58633.0,58632.0,0.3608]
[1725036977556,0.09,58633.0,58632.0,0.3608]
[1725036977955,0.09,58633.0,58632.0,0.98145641]
[1725036978344,0.03080782,58641.0,58632.0,1.49313641]
[1725036978549,0.14080782,58641.0,58639.0,0.3608]
[1725036978750,0.11025512,58641.0,58639.0,0.3608]
[1725036978958,0.11025512,58641.0,58639.0,0.98145641]
[1725036979352,0.29,58640.0,58639.0,0.98145641]
[1725036979548,0.4,58640.0,58639.0,0.98145641]
[1725036979751,0.11,58640.0,58639.0,0.98145641]
[1725036980252,0.11,58640.0,58639.0,1.50705641]
[1725036980453,0.11,58640.0,58639.0,0.99545641]
[1725036980950,0.4,58640.0,58639.0,0.99545641]
[1725036981352,0.41,58640.0,58639.0,0.3748]
[1725036981553,0.41,58640.0,58639.0,0.027]
[1725036981554,0.49527,58640.0,58639.0,0.027]
[1725036981862,0.49527,58640.0,58639.0,0.013]
[1725036982061,0.49527,58640.0,58639.0,0.027]
[1725036982562,0.49527,58640.0,58639.0,0.023]
[1725036982765,0.58054,58640.0,58639.0,0.023]
[1725036983161,1.09214,58640.0,58639.0,0.023]
[1725036983460,1.20770589,58640.0,58639.0,0.023]
[1725036983655,0.078283,58631.0,58630.0,0.00025585]
[1725036983861,0.488283,58631.0,58630.0,0.00025585]
[1725036984157,0.573566,58631.0,58630.0,0.00025585]
[1725036984360,0.746446,58631.0,58630.0,0.00025585]
[1725036985262,0.734446,58631.0,58630.0,0.00025585]
[1725036985464,0.734446,58631.0,58630.0,0.01425585]
[1725036986265,0.476283,58631.0,58630.0,0.01425585]
[1725036986470,0.669163,58631.0,58630.0,0.02325585]
[1725036986859,0.70036691,58631.0,58630.0,0.02325585]
[1725036987469,0.78564991,58631.0,58630.0,0.02325585]
[1725036988065,0.78564991,58631.0,58630.0,0.09083398]
[1725036988273,1.29732991,58631.0,58630.0,0.02325585]
[1725036988467,1.29732991,58631.0,58630.0,0.09090888]
[1725036988468,1.38261291,58631.0,58630.0,0.09090888]
[1725036988659,1.38261291,58631.0,58630.0,0.02325585]
[1725036988854,1.29732991,58631.0,58630.0,0.09090888]
[1725036989072,1.38261291,58631.0,58630.0,0.02325585]
[1725036989768,0.170584,58625.0,58624.0,0.08430416]
[1725036989970,0.170584,58625.0,58624.0,0.21435558]
[1725036989971,0.280584,58625.0,58624.0,0.21435558]
[1725036990269,0.085293,58624.0,58623.0,0.08430416]
[1725036990467,0.600586,58624.0,58623.0,0.21435621]
[1725036990771,0.600586,58624.0,58623.0,0.08430416]
[1725036990772,1.112346,58624.0,58623.0,0.08430416]
[1725036991272,1.027053,58624.0,58623.0,0.13005238]
[1725036991466,0.600586,58624.0,58623.0,0.13005238]
[1725036991660,1.098346,58624.0,58623.0,0.13005238]
[1725036992376,0.587586,58624.0,58623.0,0.14405238]
[1725036992670,1.09393533,58624.0,58623.0,0.13605238]
[1725036992860,1.09393533,58624.0,58623.0,0.014]
[1725036993060,0.085299,58620.0,58619.0,0.10220088]
[1725036993260,0.0853,58619.0,58618.0,0.10245673]
[1725036993564,0.5013,58619.0,58618.0,0.10245673]
[1725036993765,0.5013,58619.0,58618.0,0.00025585]
[1725036993966,0.5013,58619.0,58618.0,0.10245673]
[1725036994165,0.43,58619.0,58610.0,0.3608]
[1725036994371,0.385312,58611.0,58610.0,0.35437669]
[1725036994668,0.3,58615.0,58610.0,0.9750331]
[1725036994866,0.00847394,58619.0,58618.0,0.014]
[1725036995175,0.11837915,58619.0,58618.0,0.014]
[1725036995364,0.11837915,58619.0,58618.0,0.63465641]
[1725036995562,0.11937915,58619.0,58618.0,0.63465641]
[1725036995866,0.12037915,58619.0,58618.0,0.63465641]
[1725036996070,0.11937915,58619.0,58618.0,0.63465641]
[1725036996267,0.11937915,58619.0,58618.0,0.74138957]
[1725036996268,0.12037915,58619.0,58618.0,0.74138957]
[1725036996463,0.12037915,58619.0,58618.0,0.63465641]
[1725036996661,0.12037915,58619.0,58618.0,0.74139206]
[1725036996662,0.12137915,58619.0,58618.0,0.74139206]
[1725036997464,0.11937915,58619.0,58618.0,0.74139206]
[1725036997664,0.12037915,58619.0,58618.0,0.74139206]
[1725036998966,0.12037915,58619.0,58618.0,0.82669406]
[1725036999361,0.10324915,58619.0,58618.0,0.82669406]
[1725036999776,0.10324915,58619.0,58618.0,0.74139206]
[1725037000365,0.10224915,58619.0,58618.0,0.74139206]
[1725037000573,0.10424915,58619.0,58618.0,0.74139206]
[1725037001682,0.003,58619.0,58618.0,1.42669406]
[1725037002077,0.25,58638.0,58618.0,0.53667945]
[1725037002271,0.085276,58636.0,58634.0,0.3608]
[1725037002472,0.195276,58636.0,58634.0,0.3608]
[1725037003176,0.085277,58635.0,58634.0,0.3608]
[1725037003383,0.215277,58635.0,58634.0,0.3608]
[1725037005584,0.224277,58635.0,58634.0,0.3608]
[1725037006384,0.224277,58635.0,58634.0,0.7907438]
[1725037007486,0.139,58635.0,58634.0,0.7907438]
[1725037008280,0.138,58635.0,58634.0,0.7907438]
[1725037008689,0.218277,58635.0,58634.0,0.3608]
[1725037008887,0.218277,58635.0,58630.0,0.2642]
[1725037008888,0.085279,58634.0,58630.0,0.2642]
[1725037009086,0.25,58631.0,58630.0,0.4299438]
[1725037009288,0.37,58631.0,58630.0,0.4299438]
[1725037009888,0.455283,58631.0,58630.0,0.4299438]
[1725037010602,0.37,58631.0,58630.0,0.4299438]
[1725037010897,0.12,58631.0,58630.0,0.4299438]
[1725037011192,0.205283,58631.0,58630.0,0.4299438]
[1725037011391,0.455283,58631.0,58630.0,0.4299438]
[1725037011895,0.455283,58631.0,58629.0,0.00025585]
[1725037011896,0.085284,58630.0,58629.0,0.00025585]
[1725037012103,0.085284,58630.0,58629.0,0.43019965]
[1725037012390,0.085284,58630.0,58629.0,0.00025585]
[1725037012391,0.279568,58630.0,58629.0,0.00025585]
[1725037012596,0.194284,58630.0,58629.0,0.06835326]
[1725037013193,0.194284,58630.0,58629.0,0.00025585]
[1725037013392,0.444284,58630.0,58629.0,0.00225585]
[1725037013589,0.444284,58630.0,58629.0,0.43219965]
[1725037013897,0.194284,58630.0,58629.0,0.43219965]
[1725037015293,0.444284,58630.0,58629.0,0.43219965]
[1725037015491,0.444284,58630.0,58629.0,0.00225585]
[1725037019598,0.085295,58623.0,58622.0,0.3608]
[1725037019902,0.445295,58623.0,58622.0,0.7907438]
[1725037020088,0.445295,58623.0,58622.0,0.3608]
[1725037020402,0.085303,58617.0,58616.0,0.3608]
[1725037020604,0.115303,58617.0,58616.0,0.7907438]
[1725037020798,0.03,58617.0,58616.0,0.7907438]
[1725037021195,0.03,58617.0,58616.0,0.3608]
[1725037021394,0.03,58617.0,58611.0,0.00025585]
[1725037021395,0.085308,58614.0,58611.0,0.00025585]
[1725037021589,0.08531,58613.0,58611.0,0.43019965]
[1725037021799,0.085305,58616.0,58611.0,0.43019965]
[1725037021995,0.085305,58616.0,58611.0,0.87631165]
[1725037021996,0.1,58616.0,58611.0,0.87631165]
[1725037022201,0.02484513,58617.0,58616.0,0.17061]
[1725037022403,0.00025585,58622.0,58621.0,0.085297]
[1725037022604,0.00025585,58622.0,58621.0,0.446097]
[1725037022903,0.00025585,58622.0,58621.0,1.9878008]
[1725037023297,0.6108,58650.0,58621.0,1.47256]
[1725037023493,0.11847765,58643.0,58639.0,0.25]
[1725037023696,0.11,58643.0,58639.0,0.25]
[1725037023897,0.11,58643.0,58639.0,0.32032747]
[1725037024199,0.085267,58642.0,58639.0,0.32032747]
[1725037024404,0.07,58642.0,58641.0,0.3608]
[1725037024606,0.0786843,58642.0,58641.0,0.3608]
[1725037024794,0.085257,58650.0,58641.0,0.76639547]
[1725037025000,0.13,58650.0,58649.0,0.3608]
[1725037025203,0.13,58650.0,58649.0,0.67512747]
[1725037025601,0.13849473,58650.0,58649.0,0.67512747]
[1725037026296,0.13849473,58650.0,58649.0,0.3548]
[1725037026499,0.39949473,58650.0,58649.0,0.3558]
[1725037026705,0.49774973,58650.0,58649.0,0.3558]
[1725037026908,0.52199569,58650.0,58649.0,0.32673]
[1725037027099,0.52199569,58650.0,58649.0,0.19954001]
[1725037027100,1.03351569,58650.0,58649.0,0.19954001]
[1725037027302,0.94826069,58650.0,58647.0,0.3608]
[1725037027503,0.94826069,58650.0,58636.0,0.004]
[1725037027504,0.6108,58648.0,58636.0,0.004]
[1725037027805,0.085266,58643.0,58637.0,0.3608]
[1725037028010,0.25,58638.0,58637.0,0.3608]
[1725037028304,0.205266,58643.0,58637.0,0.3608]
[1725037028305,0.25,58642.0,58637.0,0.68112747]
[1725037028504,0.25,58638.0,58637.0,0.3608]
[1725037028908,0.00860057,58648.0,58637.0,0.3608]
[1725037029108,0.085273,58638.0,58637.0,0.33168501]
[1725037029302,0.085276,58636.0,58635.0,0.00025585]
[1725037029503,0.085279,58634.0,58631.0,0.3608]
[1725037029812,0.25,58632.0,58631.0,0.3608]
[1725037030016,0.36,58632.0,58631.0,0.3608]
[1725037030509,0.36,58632.0,58626.0,0.00025585]
[1725037030510,0.7208,58632.0,58626.0,0.00025585]
[1725037030711,0.25,58627.0,58626.0,0.00025585]
[1725037030908,0.45392882,58627.0,58626.0,0.00025585]
[1725037031413,1.24115982,58627.0,58617.0,0.004]
[1725037031598,0.25,58618.0,58616.0,0.3608]
[1725037031804,0.25,58618.0,58605.0,0.15741641]
[1725037031805,0.36858691,58618.0,58605.0,0.15741641]
[1725037032102,0.25,58609.0,58605.0,0.32032747]
[1725037032703,0.238,58609.0,58605.0,0.32032747]
[1725037032910,0.26285812,58609.0,58605.0,0.32032747]